bitfinex/quotes_SOLUSD_20230104
["timestamp","ask_amount","ask_price","bid_price","bid_amount"]
[1672866465338,17.0,13.058,13.043,49.13554598]
[1672866465552,246.4,13.058,13.043,49.13554598]
[1672866465887,30.0,13.057,13.043,49.13554598]
[1672866466934,229.4,13.055,13.043,49.13554598]
[1672866467145,30.0,13.054,13.043,49.13554598]
[1672866467674,30.0,13.054,13.042,115.5791]
[1672866468505,30.0,13.054,13.04,115.80554598]
[1672866468506,229.4,13.052,13.04,62.44554598]
[1672866468715,57.5,13.053,13.04,62.44554598]
[1672866468930,30.0,13.054,13.041,65.5076724]
[1672866469133,30.0,13.054,13.041,83.22009492]
[1672866469348,113.8131,13.055,13.042,66.8479685]
[1672866469547,113.8131,13.055,13.042,132.3556409]
[1672866469758,113.8131,13.055,13.043,132.3556409]
[1672866470181,113.8131,13.055,13.044,135.2156409]
[1672866470386,113.8131,13.055,13.045,17.0]
[1672866470714,30.0,13.054,13.045,117.50321838]
[1672866470930,30.0,13.054,13.045,17.71242252]
[1672866471332,30.0,13.054,13.04,66.55]
[1672866471546,30.0,13.054,13.041,17.71242252]
[1672866471777,30.0,13.054,13.041,65.84821944]
[1672866471993,30.0,13.054,13.042,48.13579692]
[1672866472201,30.0,13.054,13.042,65.84821944]
[1672866472413,343.2131,13.055,13.043,17.71242252]
[1672866472614,343.2131,13.055,13.043,65.84821944]
[1672866472827,343.2131,13.055,13.044,48.13579692]
[1672866473041,113.8131,13.055,13.044,65.84821944]
[1672866473251,113.8131,13.055,13.045,17.71242252]
[1672866474836,343.2131,13.055,13.045,17.71242252]
[1672866479656,97.4,13.05,13.045,17.71242252]
[1672866480096,97.4,13.05,13.041,48.13579692]
[1672866480287,97.4,13.05,13.042,17.71242252]
[1672866483349,326.8,13.05,13.042,17.71242252]
[1672866483670,30.0,13.048,13.037,17.71242252]
[1672866483887,30.0,13.046,13.037,17.71242252]
[1672866485547,143.8951,13.048,13.037,17.71242252]
[1672866485973,113.8951,13.048,13.04,13.34]
[1672866486297,113.8951,13.048,13.041,17.71242252]
[1672866486693,97.4,13.05,13.041,65.84821944]
[1672866487128,97.4,13.05,13.042,17.71242252]
[1672866487552,97.4,13.05,13.043,48.13579692]
[1672866487971,97.4,13.05,13.044,17.71242252]
[1672866488377,97.4,13.05,13.044,65.84821944]
[1672866488602,97.4,13.05,13.044,48.13579692]
[1672866488820,97.4,13.05,13.042,17.71242252]
[1672866489349,97.4,13.05,13.04,61.51579692]
[1672866489655,97.4,13.05,13.04,79.22821944]
[1672866490603,326.8,13.05,13.04,79.22821944]
[1672866490809,326.8,13.05,13.04,31.09242252]
[1672866492898,97.4,13.05,13.04,31.09242252]
[1672866493955,97.4,13.05,13.04,79.22821944]
[1672866494496,97.4,13.05,13.04,132.53821944]
[1672866506053,97.4,13.05,13.04,84.40242252]
[1672866512361,326.8,13.05,13.04,61.38579692]
[1672866512546,326.8,13.05,13.04,13.25]
[1672866513282,47.0,13.049,13.04,13.25]
[1672866513946,110.6778,13.048,13.04,13.25]
[1672866514242,110.6778,13.048,13.038,17.71242252]
[1672866516556,340.0778,13.048,13.038,17.71242252]
[1672866517388,340.0778,13.048,13.037,32.34647347]
[1672866517602,30.0,13.047,13.034,161.58967119]
[1672866517800,30.0,13.047,13.034,176.80209371]
[1672866518352,30.0,13.047,13.034,17.71242252]
[1672866518657,30.0,13.045,13.03,177.1454]
[1672866518871,27.85445336,13.044,13.031,16.78171693]
[1672866519186,30.0,13.045,13.031,16.78171693]
[1672866519398,30.0,13.045,13.03,13.36]
[1672866519585,30.0,13.042,13.03,13.36]
[1672866519795,35.09292572,13.04,13.03,13.36]
[1672866520006,35.09292572,13.041,13.03,13.36]
[1672866520738,30.0,13.042,13.03,13.36]
[1672866520950,29.03509751,13.041,13.03,13.36]
[1672866521403,29.03509751,13.041,13.03,30.14171693]
[1672866521583,30.0,13.042,13.03,30.14171693]
[1672866521794,27.21061758,13.041,13.03,66.67]
[1672866522024,30.0,13.042,13.03,83.45171693]
[1672866524418,30.0,13.042,13.03,13.25]
[1672866524419,229.4,13.04,13.03,13.25]
[1672866524624,74.32388058,13.039,13.03,13.25]
[1672866526109,303.72388058,13.039,13.03,13.25]
[1672866530939,74.32388058,13.039,13.03,13.25]
[1672866531153,303.72388058,13.039,13.03,13.25]
[1672866532116,303.72388058,13.039,13.022,32.8]
[1672866532317,229.4,13.035,13.022,32.8]
[1672866532526,50.03616284,13.033,13.021,32.8]
[1672866532739,50.03616284,13.031,13.023,16.78171693]
[1672866533581,50.03616284,13.031,13.023,64.91751385]
[1672866533995,50.03616284,13.031,13.024,16.78171693]
[1672866535158,50.03616284,13.031,13.023,48.13579692]
[1672866535579,50.03616284,13.031,13.023,64.91751385]
[1672866535992,50.03616284,13.031,13.023,48.13579692]
[1672866536530,50.03616284,13.031,13.023,64.91751385]
[1672866536747,30.0,13.032,13.023,64.91751385]
[1672866536968,30.98733076,13.031,13.023,64.91751385]
[1672866538743,30.0,13.032,13.023,63.91751385]
[1672866539354,28.91668453,13.031,13.023,63.91751385]
[1672866540631,28.91668453,13.031,13.023,102.54495647]
[1672866540843,28.91668453,13.031,13.024,16.78171693]
[1672866541039,28.91668453,13.032,13.024,16.78171693]
[1672866541248,28.91668453,13.032,13.02,66.64]
[1672866541458,28.91668453,13.032,13.02,83.42171693]
[1672866542317,30.0,13.033,13.02,83.42171693]
[1672866542513,28.07287635,13.032,13.02,83.42171693]
[1672866542842,30.0,13.033,13.02,83.42171693]
[1672866543992,30.0,13.033,13.021,17.0]
[1672866544188,28.88143797,13.032,13.02,83.42171693]
[1672866544398,30.0,13.033,13.02,83.42171693]
[1672866545575,30.0,13.033,13.021,17.0]
[1672866545888,30.0,13.033,13.021,33.78171693]
[1672866546405,30.0,13.033,13.021,16.78171693]
[1672866547987,97.4,13.03,13.021,16.78171693]
[1672866548411,97.4,13.03,13.022,17.0]
[1672866548815,97.4,13.03,13.023,16.78171693]
[1672866549992,97.4,13.03,13.02,33.37]
[1672866550188,30.0,13.028,13.02,33.37]
[1672866550397,31.34535786,13.027,13.02,33.37]
[1672866552716,30.0,13.028,13.02,50.76777165]
[1672866552928,30.0,13.028,13.02,33.37]
[1672866553672,31.6647282,13.027,13.018,32.81]
[1672866553864,30.0,13.026,13.018,32.81]
[1672866554071,30.0,13.024,13.018,32.81]
[1672866554284,40.66489571,13.023,13.018,32.81]
[1672866559019,40.66489571,13.023,13.01,33.43]
[1672866559020,270.06489571,13.023,13.01,6.62]
[1672866559244,30.0,13.022,13.01,6.62]
[1672866559555,343.0000253,13.021,13.001,110.7257]
[1672866559765,17.0,13.02,13.002,6.72549688]
[1672866559953,30.0,13.017,13.002,24.12326853]
[1672866560172,285.3600253,13.016,13.003,24.12251554]
[1672866560497,30.0,13.015,13.004,6.72422671]
[1672866560702,30.0,13.015,13.004,6.72370963]
[1672866560922,30.0,13.015,13.004,17.39777165]
[1672866561111,30.0,13.015,13.002,6.72370963]
[1672866561320,148.9457,13.015,13.003,17.39777165]
[1672866561534,148.9457,13.015,13.004,6.72422671]
[1672866561743,378.3457,13.015,13.004,6.72370963]
[1672866562812,30.0,13.013,13.004,6.72370963]
[1672866563015,30.0,13.018,13.004,6.72370963]
[1672866563016,29.0530253,13.012,13.004,24.12148128]
[1672866563241,118.9457,13.026,13.012,29.19705703]
[1672866563434,118.9457,13.026,13.02,6.69]
[1672866563967,118.9457,13.026,13.02,33.91179416]
[1672866564408,118.9457,13.026,13.02,69.96523678]
[1672866565453,30.0,13.025,13.018,35.92036119]
[1672866565657,30.0,13.025,13.02,6.69]
[1672866567646,259.4,13.025,13.02,6.69]
[1672866568063,30.0,13.025,13.02,6.69]
[1672866569562,259.4,13.025,13.02,6.69]
[1672866570184,30.0,13.025,13.02,6.69]
[1672866571638,57.6,13.032,13.02,6.69]
[1672866571853,229.8728,13.034,13.021,34.29296305]
[1672866572275,229.8728,13.034,13.022,136.0617909]
[1672866572597,229.8728,13.034,13.023,78.27040798]
[1672866572802,459.2728,13.034,13.023,136.0617909]
[1672866573013,30.0,13.033,13.024,136.0617909]
[1672866573332,30.0,13.033,13.024,118.76882785]
[1672866574388,30.0,13.033,13.025,17.29296305]
[1672866574581,30.0,13.033,13.024,57.79138292]
[1672866578793,246.4,13.032,13.025,52.8481116]
[1672866578998,30.0,13.031,13.02,6.65]
[1672866579206,17.0,13.03,13.02,6.65]
[1672866580040,30.0,13.029,13.02,6.65]
[1672866580252,17.0,13.028,13.02,6.65]
[1672866583009,30.0,13.029,13.02,6.65]
[1672866586477,17.0,13.028,13.02,6.65]
[1672866588035,15.5,13.028,13.02,6.65]
[1672866590154,259.4,13.029,13.02,6.65]
[1672866590660,30.0,13.03,13.02,6.65]
[1672866590875,57.59,13.033,13.02,50.64296305]
[1672866591085,30.0,13.033,13.019,61.36504957]
[1672866591296,30.0,13.033,13.021,45.33813692]
[1672866593502,30.0,13.033,13.021,94.99507794]
[1672866593941,459.2728,13.034,13.022,61.86285064]
[1672866594251,459.2728,13.034,13.023,94.99507794]
[1672866594665,459.2728,13.034,13.024,94.99507794]
[1672866595089,459.2728,13.034,13.025,49.65694102]
[1672866601524,341.6832,13.034,13.025,49.65694102]
[1672866603516,30.0,13.033,13.025,49.65694102]
[1672866603731,30.0,13.031,13.02,6.64]
[1672866603918,17.0,13.03,13.02,6.64]
[1672866604131,246.4,13.03,13.02,6.64]
[1672866604474,30.0,13.029,13.02,6.64]
[1672866610030,30.0,13.029,13.016,115.8447]
[1672866610456,30.0,13.029,13.017,49.65694102]
[1672866612672,17.0,13.028,13.01,106.46820983]
[1672866612990,17.0,13.028,13.013,138.71074102]
[1672866612991,30.0,13.027,13.013,138.71074102]
[1672866613202,229.4,13.026,13.013,49.65694102]
[1672866613407,30.0,13.025,13.013,49.65694102]
[1672866615920,229.4,13.026,13.013,49.65694102]
[1672866616658,229.4,13.026,13.013,94.99507794]
[1672866616984,30.0,13.025,13.013,94.99507794]
[1672866617173,30.0,13.025,13.013,49.65694102]
[1672866621270,30.0,13.025,13.012,29.19705703]
[1672866626000,30.0,13.025,13.012,78.85399805]
[1672866628943,30.0,13.025,13.013,17.0]
[1672866629926,112.2153,13.027,13.013,128.52871487]
[1672866630354,112.2153,13.027,13.013,111.99507794]
[1672866644096,112.2153,13.027,13.014,17.11901589]
[1672866644520,112.2153,13.027,13.014,66.77595691]
[1672866644941,112.2153,13.027,13.015,17.0]
[1672866645152,112.2153,13.027,13.015,34.11901589]
[1672866645359,263.3,13.029,13.02,13.4]
[1672866645575,320.87,13.039,13.021,20.0]
[1672866645777,115.7315,13.035,13.022,55.6137211]
[1672866646197,341.6832,13.034,13.022,105.27066212]
[1672866647246,341.6832,13.034,13.022,156.83579904]
[1672866647682,341.6832,13.034,13.022,101.22207794]
[1672866647878,341.6832,13.034,13.023,25.97567823]
[1672866648528,341.6832,13.034,13.022,51.56513692]
[1672866648734,341.6832,13.034,13.023,26.34909588]
[1672866650635,112.2832,13.034,13.023,26.34909588]
[1672866650836,112.2832,13.034,13.024,17.0]
[1672866651030,112.2832,13.034,13.025,37.72970447]
[1672866651239,112.2832,13.034,13.024,55.01474362]
[1672866652194,112.2832,13.034,13.024,106.57988054]
[1672866654601,112.2832,13.034,13.024,156.23682156]
[1672866655023,112.2832,13.034,13.024,118.34109383]
[1672866655226,112.2832,13.034,13.025,25.57417732]
[1672866656598,112.2832,13.034,13.024,101.22207794]
[1672866658066,112.2832,13.034,13.025,29.96681578]
[1672866658808,112.2832,13.034,13.025,81.5319527]
[1672866659755,112.2832,13.034,13.025,131.18889372]
[1672866659974,112.2832,13.034,13.025,101.22207794]
[1672866661011,112.2832,13.034,13.026,34.11901589]
[1672866661452,112.2832,13.034,13.027,101.22207794]
[1672866662508,112.2832,13.034,13.027,118.34109383]
[1672866662691,112.2832,13.034,13.028,101.22207794]
[1672866663330,112.2832,13.034,13.029,49.65694102]
[1672866663853,263.3,13.039,13.029,49.65694102]
[1672866664065,40.09875456,13.059,13.029,49.65694102]
[1672866664066,57.54,13.044,13.03,127.59555861]
[1672866664397,30.0,13.046,13.031,112.25946333]
[1672866664580,30.0,13.046,13.032,61.39184446]
[1672866664791,30.0,13.046,13.032,173.65130779]
[1672866665000,259.4,13.046,13.033,112.25946333]
[1672866665218,259.4,13.046,13.034,61.39184446]
[1672866665427,259.4,13.046,13.034,47.61621079]
[1672866665633,30.0,13.046,13.035,112.25946333]
[1672866665950,116.3198,13.047,13.036,56.14165385]
[1672866668276,116.3198,13.047,13.036,106.65704811]
[1672866668486,116.3198,13.047,13.036,165.84766326]
[1672866668702,116.3198,13.047,13.04,6.61]
[1672866669117,116.3198,13.047,13.04,62.75165385]
[1672866669332,116.3198,13.047,13.04,113.26704811]
[1672866670402,116.3198,13.047,13.041,17.11901589]
[1672866670922,116.3198,13.047,13.041,73.26066974]
[1672866671342,116.3198,13.047,13.041,56.14165385]
[1672866671663,116.3198,13.047,13.039,17.11901589]
[1672866672911,116.3198,13.047,13.04,6.68]
[1672866673339,116.3198,13.047,13.041,17.11901589]
[1672866674705,115.6324,13.048,13.041,73.26066974]
[1672866675022,115.6324,13.048,13.041,148.72864737]
[1672866675217,115.6324,13.048,13.042,17.11901589]
[1672866675541,229.4,13.054,13.043,148.72864737]
[1672866675542,57.5,13.054,13.043,148.72864737]
[1672866675759,348.6048,13.057,13.043,148.72864737]
[1672866675955,348.6048,13.057,13.044,123.776064]
[1672866676492,348.6048,13.057,13.045,123.776064]
[1672866676895,348.6048,13.057,13.046,123.776064]
[1672866677106,339.7557,13.055,13.046,106.65704811]
[1672866677317,17.0,13.054,13.046,56.14165385]
[1672866677543,17.0,13.054,13.041,50.51539426]
[1672866677854,17.0,13.054,13.041,106.65704811]
[1672866677855,276.4,13.054,13.041,106.65704811]
[1672866678051,276.4,13.054,13.042,56.14165385]
[1672866679209,30.0,13.053,13.04,6.62]
[1672866679417,229.4,13.051,13.04,6.62]
[1672866679639,30.0,13.05,13.04,6.62]
[1672866680280,30.0,13.05,13.04,62.76165385]
[1672866681329,30.0,13.05,13.04,56.14165385]
[1672866681541,30.0,13.05,13.041,17.11901589]
[1672866681945,116.215,13.052,13.041,17.11901589]
[1672866683016,116.215,13.052,13.042,102.91304811]
[1672866683407,116.215,13.052,13.043,17.11901589]
[1672866683832,116.215,13.052,13.043,69.51666974]
[1672866685319,116.215,13.052,13.043,120.032064]
[1672866685856,116.215,13.052,13.044,17.11901589]
[1672866686163,116.215,13.052,13.045,52.39765385]
[1672866687828,110.3557,13.055,13.045,120.032064]
[1672866688036,110.3557,13.055,13.046,42.07159926]
[1672866688273,110.3557,13.055,13.046,94.46925311]
[1672866688456,110.3557,13.055,13.047,120.032064]
[1672866688784,110.3557,13.055,13.048,69.51666974]
[1672866688997,110.3557,13.055,13.048,120.032064]
[1672866689187,110.3557,13.055,13.049,102.91304811]
[1672866689399,110.3557,13.055,13.049,120.032064]
[1672866689609,110.3557,13.055,13.05,102.91304811]
[1672866690047,110.3557,13.055,13.051,50.51539426]
[1672866692814,110.3557,13.055,13.05,52.39765385]
[1672866693751,110.3557,13.055,13.048,50.51539426]
[1672866693951,110.3557,13.055,13.041,201.8135]
[1672866694157,110.3557,13.055,13.045,52.39765385]
[1672866697527,110.3557,13.055,13.045,102.91304811]
[1672866697921,110.3557,13.055,13.045,120.032064]
[1672866698138,110.3557,13.055,13.046,52.39765385]
[1672866698465,110.3557,13.055,13.046,120.64876859]
[1672866698789,110.3557,13.055,13.047,52.39765385]
[1672866699192,110.3557,13.055,13.047,102.91304811]
[1672866699617,110.3557,13.055,13.048,70.13337433]
[1672866699928,110.3557,13.055,13.049,120.64876859]
[1672866700344,116.8338,13.057,13.05,70.13337433]
[1672866700563,116.8338,13.057,13.05,102.91304811]
[1672866700872,229.4,13.064,13.051,48.90498718]
[1672866701096,229.4,13.064,13.051,92.68638144]
[1672866701526,229.4,13.064,13.052,63.78139426]
[1672866701711,229.4,13.064,13.052,112.68638144]
[1672866701925,229.4,13.065,13.053,61.51711474]
[1672866702459,229.4,13.065,13.053,110.42210192]
[1672866703296,229.4,13.065,13.053,66.64070766]
[1672866703621,229.4,13.065,13.054,17.73572048]
[1672866703830,30.0,13.064,13.05,13.31]
[1672866704032,30.0,13.064,13.042,117.0084]
[1672866704033,246.4,13.063,13.042,117.0084]
[1672866704247,229.4,13.061,13.043,20.0]
[1672866704584,30.0,13.059,13.044,48.90498718]
[1672866704758,30.0,13.059,13.044,66.63873102]
[1672866704967,30.0,13.059,13.045,17.73374384]
[1672866705297,30.0,13.059,13.045,66.63873102]
[1672866705511,17.0,13.058,13.043,43.78139426]
[1672866705713,17.0,13.058,13.042,117.0084]
[1672866706129,17.0,13.058,13.043,20.0]
[1672866706546,246.4,13.058,13.043,20.0]
[1672866706756,30.0,13.057,13.043,20.0]
[1672866707913,17.0,13.056,13.043,20.0]
[1672866708350,112.7379,13.055,13.043,20.0]
[1672866715714,342.1379,13.055,13.043,20.0]
[1672866715925,342.1379,13.055,13.04,13.24]
[1672866715926,30.0,13.054,13.041,20.0]
[1672866721294,17.0,13.053,13.041,20.0]
[1672866721712,229.4,13.052,13.035,108.7636]
[1672866721907,229.4,13.05,13.03,66.87]
[1672866722126,17.0,13.049,13.03,179.5336]
[1672866722338,276.4,13.049,13.03,179.5336]
[1672866722854,30.0,13.047,13.03,179.5336]
[1672866723065,17.0,13.046,13.031,36.43]
[1672866723276,30.0,13.047,13.031,36.43]
[1672866723719,149.4633,13.047,13.031,36.43]
[1672866724250,149.4633,13.047,13.032,37.0]
[1672866724473,17.0,13.046,13.032,20.0]
[1672866725208,30.0,13.045,13.03,54.296258]
[1672866725411,30.0,13.045,13.027,133.98542052]
[1672866725629,30.0,13.045,13.03,66.75]
[1672866725821,30.0,13.045,13.03,66.71]
[1672866726974,17.0,13.044,13.03,66.71]
[1672866727187,17.0,13.044,13.025,39.66820983]
[1672866727500,30.0,13.041,13.02,147.771]
[1672866727706,30.0,13.039,13.021,30.0]
[1672866728152,30.0,13.037,13.021,30.0]
[1672866728985,38.72916383,13.036,13.021,30.0]
[1672866729178,38.80614212,13.034,13.022,20.0]
[1672866729393,38.80614212,13.034,13.02,13.46]
[1672866730025,38.80614212,13.034,13.021,30.0]
[1672866730224,149.04724212,13.034,13.021,30.0]
[1672866730754,149.04724212,13.034,13.022,20.0]
[1672866731086,110.2411,13.034,13.022,20.0]
[1672866731396,36.17741766,13.033,13.022,20.0]
[1672866731615,110.2411,13.034,13.021,20.0]
[1672866733297,30.0,13.033,13.021,20.0]
[1672866734226,30.0,13.031,13.021,20.0]
[1672866734447,37.92988445,13.03,13.021,20.0]
[1672866736971,37.92988445,13.03,13.02,13.46]
[1672866737189,30.0,13.029,13.014,2.804]
[1672866737374,53.07296336,13.028,13.013,80.871]
[1672866737584,83.07296336,13.026,13.011,2.805]
[1672866738843,83.07296336,13.026,13.011,22.805]
[1672866739480,83.07296336,13.026,13.012,17.0]
[1672866739697,83.07296336,13.026,13.013,20.0]
[1672866739921,83.07296336,13.026,13.014,17.0]
[1672866741058,83.07296336,13.026,13.013,20.0]
[1672866741289,83.07296336,13.026,13.011,22.805]
[1672866742549,83.07296336,13.026,13.012,17.0]
[1672866742736,83.07296336,13.026,13.013,20.0]
[1672866743914,312.47296336,13.026,13.013,20.0]
[1672866744223,312.47296336,13.026,13.011,20.0]
[1672866744414,87.62,13.026,13.012,17.0]
[1672866744624,87.62,13.026,13.013,20.0]
[1672866745783,17.0,13.025,13.013,20.0]
[1672866746123,17.0,13.025,13.011,20.0]
[1672866746833,10.0,17.5,13.011,20.0]
[1672866746834,229.4,13.037,13.02,66.9]
[1672866747049,343.7412,13.035,13.021,20.0]
[1672866748412,30.0,13.033,13.021,20.0]
[1672866749484,30.0,13.033,13.021,53.29268137]
[1672866749485,229.4,13.031,13.021,53.29268137]
[1672866749677,30.0,13.03,13.021,53.29268137]
[1672866749887,30.0,13.03,13.013,57.68]
[1672866750232,119.5209,13.029,13.012,53.29268137]
[1672866750421,30.0,13.028,13.014,53.29268137]
[1672866751148,30.0,13.026,13.014,53.29268137]
[1672866751986,30.0,13.026,13.01,161.2619]
[1672866752200,30.0,13.026,13.011,20.0]
[1672866754730,30.0,13.026,13.011,77.69]
[1672866754941,30.0,13.026,13.012,17.0]
[1672866755163,30.0,13.026,13.013,20.0]
[1672866755357,30.0,13.026,13.014,17.0]
[1672866756010,30.0,13.026,13.014,70.29268137]
[1672866756536,30.0,13.026,13.014,53.29268137]
[1672866757037,108.2069,13.027,13.015,17.0]
[1672866757249,108.2069,13.027,13.014,17.0]
[1672866758004,108.2069,13.027,13.014,70.29268137]
[1672866758627,57.59,13.033,13.02,66.8]
[1672866758840,112.4088,13.037,13.021,17.0]
[1672866759157,112.4088,13.037,13.022,20.0]
[1672866759367,57.58,13.036,13.022,20.0]
[1672866759681,112.4088,13.037,13.023,17.0]
[1672866762186,112.4088,13.037,13.023,70.29268137]
[1672866777656,112.4088,13.037,13.023,114.04108212]
[1672866778811,30.0,13.033,13.018,57.66]
[1672866779026,30.0,13.033,13.02,67.05]
[1672866779223,112.4088,13.037,13.02,124.7]
[1672866779427,112.4088,13.037,13.021,78.67398231]
[1672866779638,112.4088,13.037,13.022,57.64]
[1672866779868,112.4088,13.037,13.022,186.61217817]
[1672866780073,112.4088,13.037,13.023,68.67398231]
[1672866780289,112.4088,13.037,13.024,57.63]
[1672866780485,112.4088,13.037,13.024,106.30398231]
[1672866780690,112.4088,13.037,13.025,48.67398231]
[1672866781974,112.4088,13.037,13.026,17.0]
[1672866788607,112.4088,13.037,13.025,48.67398231]
[1672866790184,112.4088,13.037,13.026,17.0]
[1672866799964,112.4088,13.037,13.026,65.67398231]
[1672866806364,112.4088,13.037,13.026,83.53523414]
[1672866806568,112.4088,13.037,13.03,13.39]
[1672866806781,112.4088,13.037,13.031,17.0]
[1672866809941,112.4088,13.037,13.031,65.67398231]
[1672866814149,112.4088,13.037,13.031,48.67398231]
[1672866814360,112.4088,13.037,13.021,57.64]
[1672866814574,30.0,13.035,13.022,20.0]
[1672866814765,117.5446,13.034,13.022,64.46198231]
[1672866814976,117.5446,13.034,13.023,17.86125183]
[1672866815198,117.5446,13.034,13.023,62.32323414]
[1672866815413,117.5446,13.034,13.024,44.46198231]
[1672866815617,117.5446,13.034,13.024,62.32323414]
[1672866816873,117.5446,13.034,13.025,17.0]
[1672866817842,117.5446,13.034,13.025,114.69970951]
[1672866818027,117.5446,13.034,13.025,151.20724886]
[1672866820879,117.5446,13.034,13.02,63.48474421]
[1672866821096,117.5446,13.034,13.023,40.60861051]
[1672866821504,117.5446,13.034,13.024,17.86125183]
[1672866821927,117.5446,13.034,13.024,58.46986234]
[1672866822979,117.5446,13.034,13.025,17.0]
[1672866823932,117.5446,13.034,13.025,74.53227225]
[1672866824446,117.5446,13.034,13.025,57.60861051]
[1672866827821,117.5446,13.034,13.026,16.92366174]
[1672866828013,117.5446,13.034,13.027,17.0]
[1672866828431,117.5446,13.034,13.028,16.92366174]
[1672866828744,117.5446,13.034,13.029,17.0]
[1672866828954,112.299,13.041,13.029,17.0]
[1672866829277,112.299,13.041,13.03,70.44366174]
[1672866829489,112.299,13.041,13.031,17.0]
[1672866829700,112.299,13.041,13.032,20.0]
[1672866829913,112.299,13.041,13.033,17.0]
[1672866830123,112.299,13.041,13.033,33.92366174]
[1672866831286,112.299,13.041,13.033,16.92366174]
[1672866835926,112.299,13.041,13.03,33.52]
[1672866836140,112.299,13.041,13.031,37.0]
[1672866840133,112.299,13.041,13.031,53.92366174]
[1672866845802,112.299,13.041,13.031,36.92366174]
[1672866846020,112.299,13.041,13.031,20.0]
[1672866846961,112.299,13.041,13.032,17.0]
[1672866847290,112.299,13.041,13.033,20.0]
[1672866847680,112.299,13.041,13.034,17.0]
[1672866848430,112.299,13.041,13.033,20.0]
[1672866850319,112.299,13.041,13.034,17.0]
[1672866853799,112.299,13.041,13.034,33.92366174]
[1672866856111,113.0093,13.043,13.034,33.92366174]
[1672866856299,109.261,13.048,13.034,76.87227225]
[1672866856505,220.1188,13.048,13.04,6.69]
[1672866867776,30.0,13.047,13.026,30.0]
[1672866868098,30.0,13.047,13.04,6.69]
[1672866870615,30.0,13.047,13.03,26.76]
[1672866870827,30.0,13.047,13.031,20.0]
[1672866871051,57.53,13.046,13.031,20.0]
[1672866871240,30.0,13.045,13.031,20.0]
[1672866871863,30.0,13.043,13.031,20.0]
[1672866872070,30.0,13.041,13.03,6.65]
[1672866872310,117.23378826,13.04,13.03,6.65]
[1672866872514,30.0,13.039,13.03,6.65]
[1672866872708,124.24629904,13.038,13.03,6.65]
[1672866873231,30.0,13.037,13.02,303.14444261]
[1672866873445,30.0,13.035,13.021,30.0]
[1672866873662,182.18429904,13.034,13.021,30.0]
[1672866873985,30.0,13.033,13.021,30.0]
[1672866874174,66.67629904,13.032,13.021,30.0]
[1672866874600,66.67629904,13.032,13.022,20.0]
[1672866875021,66.67629904,13.032,13.023,17.0]
[1672866877029,66.67629904,13.032,13.02,6.72]
[1672866877237,30.0,13.033,13.02,6.72]
[1672866877238,69.38689185,13.03,13.02,6.72]
[1672866877432,73.49302342,13.028,13.02,6.72]
[1672866877644,30.0,13.027,13.02,6.72]
[1672866877854,73.49302342,13.026,13.02,6.72]
[1672866882898,73.49302342,13.026,13.02,33.48]
[1672866883231,118.7866,13.027,13.021,37.0]
[1672866883443,87.57,13.039,13.021,37.0]
[1672866883641,110.8871,13.033,13.021,37.0]
[1672866883853,37.93111122,13.032,13.021,37.0]
[1672866884282,110.8871,13.033,13.021,37.0]
[1672866884892,110.8871,13.033,13.021,17.0]